fUST/lending_fUST_20240228
["ID","MTS","AMOUNT","RATE_DAILY","PERIOD"]
[315558644,1709127044297,-500.0,0.00020273,2]
[315558646,1709127044305,-2887.77,0.00020273,2]
[315558648,1709127044315,-1022.44,0.00020273,2]
[315558650,1709127044325,-594.35,0.00020273,2]
[315558652,1709127044333,-699.89,0.00020273,2]
[315558654,1709127044342,-707.23,0.00020273,2]
[315558656,1709127044351,-500.0,0.00020273,2]
[315558658,1709127044360,-1240.44,0.00020273,2]
[315558659,1709127044369,-7548.0,0.00020273,2]
[315558661,1709127044378,-589.12,0.00020273,2]
[315558663,1709127044387,-1017.74,0.00020273,2]
[315558665,1709127044396,-500.0,0.00020273,2]
[315558667,1709127044405,-609.02,0.00020273,2]
[315558669,1709127044414,-666.77,0.00020273,2]
[315558671,1709127044423,-3907.83,0.00020273,2]
[315558673,1709127044432,-1008.4,0.00020273,2]
[315558675,1709127044441,-1342.06,0.00020273,2]
[315558677,1709127044451,-1269.86,0.00020273,2]
[315558679,1709127044463,-7662.62,0.00020273,2]
[315558681,1709127044472,-500.0,0.00020273,2]
[315558683,1709127044482,-1535.63,0.00020273,2]
[315558685,1709127044491,-500.0,0.00020273,2]
[315558687,1709127044500,-1207.33,0.00020273,2]
[315558689,1709127044510,-1720.44433957,0.00020277,2]
[315558691,1709127044519,-160.0,0.00020298,2]
[315558693,1709127044528,-8135.6205571,0.00020299,2]
[315558695,1709127044537,-1000.0,0.00020299,5]
[315558697,1709127044546,-5589.081337,0.00020299,2]
[315558699,1709127044555,-4464.11385042,0.00020299,2]
[315558701,1709127044564,-1000.0,0.00020299,5]
[315558703,1709127044573,-1000.0,0.00020299,5]
[315558705,1709127044582,-5634.07000712,0.00020299,2]
[315558707,1709127044591,-4270.45197312,0.00020299,2]
[315558709,1709127044600,-1000.0,0.00020299,5]
[315558710,1709127044609,-1000.0,0.00020299,5]
[315558712,1709127044619,-4204.24379364,0.00020299,2]
[315558714,1709127044628,-301.81575007,0.00020299,2]
[315558716,1709127044637,-1000.0,0.00020299,5]
[315558718,1709127044646,-1000.0,0.00020299,5]
[315558720,1709127044655,-1000.0,0.00020299,5]
[315558722,1709127044665,-1000.0,0.00020299,5]
[315558724,1709127044674,-1820.28710902,0.00020299,2]
[315558726,1709127044683,-1000.0,0.00020299,5]
[315558728,1709127044692,-5272.92733486,0.00020299,2]
[315558730,1709127044701,-2316.68958712,0.00020299,2]
[315558732,1709127044715,-3223.0972408,0.00020299,3]
[315558734,1709127044725,-511.21428555,0.00020299,3]
[315558736,1709127044734,-450.75913228,0.00020299,3]
[315558738,1709127044744,-235.64035833,0.00020299,3]
[315558740,1709127044754,-1000.0,0.00020299,5]
[315558742,1709127044763,-1059.29012414,0.00020299,3]
[315558743,1709127044772,-1000.0,0.00020299,5]
[315558745,1709127044782,-1508.07692269,0.00020299,3]
[315558747,1709127044791,-151.0,0.00020299,2]
[315558749,1709127044801,-4962.58033046,0.00020299,2]
[315558751,1709127044812,-5315.8103758,0.00020299,3]
[315558753,1709127044825,-1000.0,0.00020299,5]
[315558755,1709127044835,-1000.0,0.00020299,5]
[315558757,1709127044846,-378.502174,0.00020299,2]
[315558759,1709127044857,-378.502174,0.00020299,2]
[315558761,1709127044867,-6428.89773862,0.00020299,2]
[315558763,1709127044877,-1000.0,0.00020299,5]
[315558765,1709127044887,-1000.0,0.00020299,5]
[315558767,1709127044896,-1000.0,0.00020299,5]
[315558769,1709127044906,-1000.0,0.00020299,5]
[315558771,1709127044915,-2745.08542481,0.00020299,2]
[315558773,1709127044925,-1520.23858078,0.00020299,2]
[315558775,1709127044935,-208.1693777,0.000203,2]
[315558777,1709127044944,-169.8856446,0.000203,2]
[315558779,1709127044956,-2308.42418794,0.000203,2]
[315558781,1709127044966,-213.29456624,0.000203,2]
[315558783,1709127044975,-200.0,0.000203,2]
[315558785,1709127044983,-169.05865888,0.000203,2]
[315558786,1709127044993,-1811.04595959,0.000203,2]
[315558788,1709127045002,-162.08072522,0.000203,2]
[315558790,1709127045011,-300.82270687,0.000203,2]
[315558792,1709127045021,-158.78727562,0.000203,2]
[315558794,1709127045030,-1416.16549104,0.000203,2]
[315558796,1709127045039,-1679.44160327,0.000203,2]
[315558798,1709127045049,-2058.69168716,0.000203,2]
[315558800,1709127045058,-262.57067034,0.000203,2]
[315558802,1709127045068,-200.4969484,0.000203,2]
[315558804,1709127045077,-169.01859411,0.000203,2]
[315558806,1709127045086,-160.38397635,0.000203,2]
[315558808,1709127045096,-200.06698349,0.000203,2]
[315558810,1709127045106,-628.36864757,0.000203,2]
[315558812,1709127045115,-202.5785112,0.000203,2]
[315558823,1709127045216,-201.68812575,0.000203,2]
[315558825,1709127045228,-206.09863426,0.000203,2]
[315558827,1709127045239,-262.09644911,0.000203,2]
[315558829,1709127045250,-197.5903061,0.000203,2]
[315558831,1709127045261,-169.82382911,0.000203,2]
[315558833,1709127045271,-151.0,0.000203,2]
[315558835,1709127045281,-310.21722967,0.000203,2]
[315558837,1709127045291,-413.51739081,0.000203,2]
[315558839,1709127045300,-397.73693479,0.00020301,7]
[315558841,1709127045310,-5000.0,0.00020302,5]
[315558842,1709127045320,-5000.0,0.00020302,5]
[315558844,1709127045330,-22987.1201204,0.00020302,2]
[315558846,1709127045340,-5000.0,0.00020302,5]
[315558848,1709127045350,-5000.0,0.00020302,5]
[315558850,1709127045360,-50000.0,0.00020302,2]
[315558852,1709127045369,-16353.49535777,0.00020302,2]
[315558854,1709127045378,-5000.0,0.00020302,5]
[315558856,1709127045388,-5000.0,0.00020302,5]
[315558858,1709127045397,-50000.0,0.00020302,2]
[315558860,1709127045408,-5000.0,0.00020302,5]
[315558862,1709127045417,-5000.0,0.00020302,5]
[315558864,1709127045427,-50000.0,0.00020302,5]
[315558866,1709127045436,-74307.18096282,0.00020302,5]
[315558868,1709127045446,-5000.0,0.00020302,5]
[315558870,1709127045458,-5000.0,0.00020302,5]
[315558872,1709127045467,-5000.0,0.00020302,5]
[315558874,1709127045476,-5000.0,0.00020302,5]
[315558876,1709127045486,-5000.0,0.00020302,5]
[315558878,1709127045495,-50000.0,0.00020302,5]
[315558880,1709127045504,-5000.0,0.00020302,5]
[315558882,1709127045513,-46061.29382714,0.00020302,3]
[315558884,1709127045522,-5000.0,0.00020302,5]
[315558886,1709127045533,-50000.0,0.00020302,3]
[315558888,1709127045543,-28459.31652222,0.00020302,3]
[315558890,1709127045552,-50000.0,0.00020302,5]
[315558891,1709127045561,-5000.0,0.00020302,5]
[315558893,1709127045570,-5000.0,0.00020302,5]
[315558895,1709127045579,-378.502174,0.00020302,2]
[315558897,1709127045588,-378.502174,0.00020302,2]
[315558899,1709127045598,-378.502174,0.00020302,2]
[315558901,1709127045607,-378.502174,0.00020302,2]
[315558902,1709127045616,-378.502174,0.00020302,2]
[315558903,1709127045625,-378.502174,0.00020302,2]
[315558904,1709127045634,-378.502174,0.00020302,2]
[315558905,1709127045643,-378.502174,0.00020302,2]
[315558906,1709127045652,-378.502174,0.00020302,2]
[315558907,1709127045661,-378.502174,0.00020302,2]
[315558908,1709127045670,-378.502174,0.00020302,2]
[315558909,1709127045679,-378.502174,0.00020302,2]
[315558910,1709127045689,-50000.0,0.00020302,3]
[315558911,1709127045698,-5000.0,0.00020302,5]
[315558912,1709127045710,-50000.0,0.00020302,5]
[315558913,1709127045719,-3281.49457807,0.00020302,2]
[315558914,1709127045728,-1213.66256358,0.00020328,2]
[315558915,1709127045737,-1720.44433957,0.00020355,2]
[315558916,1709127045747,-50000.0,0.00020359,3]
[315558918,1709127045756,-50000.0,0.00020365,2]
[315558920,1709127045766,-378.502174,0.00020365,2]
[315558922,1709127045775,-378.502174,0.00020365,2]
[315558924,1709127045784,-50000.0,0.00020371,2]
[315558925,1709127045794,-378.502174,0.00020373,2]
[315558928,1709127045802,-378.50217167,0.00020373,2]
[315558931,1709127045811,-500.0,0.00020376,2]
[315558934,1709127045820,-511.66720677,0.00020376,2]
[315558937,1709127045829,-500.0,0.00020376,2]
[315558940,1709127045839,-540.74410488,0.00020376,2]
[315558941,1709127045848,-500.0,0.00020376,2]
[315558944,1709127045857,-500.0,0.00020376,2]
[315558947,1709127045867,-500.0,0.00020376,2]
[315558950,1709127045876,-500.0,0.00020376,2]
[315558953,1709127045886,-500.0,0.00020376,2]
[315558956,1709127045895,-500.0,0.00020376,2]
[315558959,1709127045904,-500.0,0.00020376,2]
[315558961,1709127045913,-500.0,0.00020376,2]
[315558965,1709127045922,-500.0,0.00020376,2]
[315558970,1709127045932,-500.0,0.00020376,2]
[315558974,1709127045941,-500.0,0.00020376,2]
[315558978,1709127045950,-500.0,0.00020376,2]
[315558984,1709127045963,-500.0,0.00020376,2]
[315558988,1709127045973,-500.0,0.00020376,2]
[315558992,1709127045982,-500.0,0.00020376,2]
[315558997,1709127045991,-500.0,0.00020376,2]
[315559001,1709127046000,-500.0,0.00020376,2]
[315559005,1709127046009,-500.0,0.00020376,2]
[315559009,1709127046018,-218.75877186,0.00020376,2]
[315559012,1709127046027,-500.0,0.00020376,2]
[315559016,1709127046038,-500.0,0.00020376,2]
[315559020,1709127046047,-500.0,0.00020376,2]
[315559025,1709127046056,-500.0,0.00020376,2]
[315559029,1709127046065,-50000.0,0.00020378,2]
[315559034,1709127046074,-500.0,0.0002039,2]
[315559040,1709127046084,-13754.08030281,0.00020392,3]
[315559045,1709127046093,-227.75430661,0.00020403,2]
[315559049,1709127046102,-157.70754632,0.00020404,2]
[315559054,1709127046112,-1720.44433957,0.00020433,2]
[315559059,1709127046121,-156.98819705,0.00020441,2]
[315559064,1709127046130,-182.23727065,0.00020441,2]
[315559068,1709127046140,-688.30566086,0.00020441,2]
[315559073,1709127046151,-197.07293343,0.00020453,2]
[315559076,1709127046160,-18196.25619058,0.00020484,5]
[315559198,1709127046856,-10.12589377,0.00020273,2]
[315559200,1709127046872,-506.40410623,0.00020273,2]
[315559202,1709127046882,-500.0,0.00020376,2]
[315559204,1709127046891,-2162.68336982,0.00020484,5]
[315559205,1709127046906,-1393.81008282,0.00020484,5]
[315559207,1709127046919,-614.33585079,0.00020484,5]
[315559211,1709127047006,-500.0,0.00019178,2]
[315559212,1709127047016,-58.79723705,0.00019452,2]
[315559213,1709127047029,-441.20276295,0.00019452,2]
[315559214,1709127047039,-500.0,0.00019726,2]
[315559216,1709127047050,-644.46,0.0002,2]
[315559218,1709127047060,-4464.33723705,0.00020484,5]
[315559241,1709127047571,-155.20176229,0.0001572,2]
[315559243,1709127047581,-271.01734685,0.00020097,2]
[315559245,1709127047590,-500.0,0.00020097,2]
[315559247,1709127047600,-500.0,0.00020097,2]
[315559249,1709127047609,-204.14203695,0.00020097,2]
[315559251,1709127047618,-500.0,0.00020097,2]
[315559253,1709127047627,-424.09990817,0.00020097,2]
[315559255,1709127047637,-500.0,0.00020097,2]
[315559257,1709127047646,-500.0,0.00020097,2]
[315559259,1709127047656,-500.0,0.00020097,2]
[315559261,1709127047666,-500.0,0.00020097,2]
[315559262,1709127047675,-500.0,0.00020097,2]
[315559264,1709127047685,-500.0,0.00020097,2]
[315559266,1709127047695,-500.0,0.00020097,2]
[315559268,1709127047704,-500.0,0.00020097,2]
[315559270,1709127047717,-455.32641781,0.00020097,2]
[315559272,1709127047726,-500.0,0.00020097,2]
[315559274,1709127047736,-500.0,0.00020097,2]
[315559276,1709127047745,-500.0,0.00020097,2]
[315559278,1709127047755,-108.71595962,0.00020097,2]
[315559282,1709127047785,-391.28404038,0.00020097,2]
[315559284,1709127047796,-389.38279219,0.00020097,2]
[315559286,1709127047806,-500.0,0.00020097,2]
[315559288,1709127047816,-500.0,0.00020097,2]
[315559290,1709127047827,-500.0,0.00020097,2]
[315559292,1709127047837,-483.96191582,0.00020097,2]
[315559294,1709127047847,-249.58765163,0.00020097,2]
[315560719,1709127269751,500.0,0.00017494,2]
[315560720,1709127269780,500.0,0.00017494,2]
[315560721,1709127269809,500.0,0.00017494,2]
[315560725,1709127401547,188.38117424,0.00017287,2]
[315560728,1709127497742,159.4743456,0.0001728,2]
[315560730,1709127519917,152.14448016,0.00016452,2]
[315560731,1709127519948,500.0,0.00016452,2]
[315560732,1709127519979,500.0,0.00016452,2]
[315560733,1709127520007,500.0,0.00016452,2]
[315560734,1709127520037,500.0,0.00016452,2]
[315560737,1709127614732,500.0,0.00015445,2]
[315560738,1709127614761,451.115787,0.00015445,2]
[315560739,1709127620590,48.884213,0.00015445,2]
[315560740,1709127620622,135.6942974,0.00015445,2]
[315560742,1709127696971,303.5479402,0.0001539,2]
[315560743,1709127701433,60.7577624,0.00015389,2]
[315560744,1709127701463,94.41137196,0.00015389,2]
[315560745,1709127702192,205.27855993,0.00015389,2]
[315560746,1709127702239,155.16913436,0.00015389,2]
[315560747,1709127704238,45.14093375,0.00015389,2]
[315560748,1709127704270,299.45689193,0.00015389,2]
[315560749,1709127712761,688.7777928,0.00015367,2]
[315560756,1709127834090,3000.0,0.00015448,2]
[315560802,1709128027788,24900.0,0.00015388,2]
[315560803,1709128033190,788.3,0.0001565,2]
[315560804,1709128040884,15323.46531527,0.00015388,2]
[315560805,1709128040923,3234.16002153,0.00015388,2]
[315560807,1709128075037,475.557893,0.00015249,2]
[315560815,1709128179789,174.9754292,0.00015388,2]
[315560962,1709128235136,-1380.6496314,0.00016186,2]
[315560964,1709128235147,-290.02402273,0.00016187,2]
[315560966,1709128235157,-155.15360207,0.00016187,2]
[315560967,1709128235169,-155.15204901,0.00016187,2]
[315560969,1709128235180,-400.75162755,0.00016187,2]
[315560971,1709128235189,-632.17712004,0.00016187,2]
[315560973,1709128235202,-7375.05732247,0.00016187,2]
[315560975,1709128235212,-2111.64420487,0.00016188,2]
[315560977,1709128235223,-155.15360207,0.00016188,2]
[315560979,1709128235233,-527.76651352,0.00016188,2]
[315560981,1709128235244,-155.15360207,0.00016189,2]
[315560982,1709128235254,-155.15360207,0.00016189,2]
[315560984,1709128235264,-1033.15800812,0.00016189,2]
[315560986,1709128235275,-155.15360207,0.00016189,2]
[315560988,1709128235286,-164.372374,0.00016189,2]
[315560990,1709128235296,-29236.8728638,0.00016189,2]
[315560991,1709128235306,-155.15360207,0.0001619,2]
[315560992,1709128235316,-155.15360207,0.0001619,2]
[315560993,1709128235326,-1863.17330942,0.0001619,2]
[315560994,1709128235336,-155.15360207,0.00016191,2]
[315560995,1709128235346,-344.59782568,0.00016191,2]
[315560996,1709128235357,-155.15360207,0.00016191,2]
[315560997,1709128235367,-4700.60014085,0.00016192,2]
[315560998,1709128235378,-1603.92253255,0.00016192,2]
[315560999,1709128235388,-155.69178995,0.00016192,2]
[315561000,1709128235398,-592.46406366,0.00016193,2]
[315561001,1709128235408,-155.15360207,0.00016193,2]
[315561002,1709128235420,-155.15360207,0.00016193,2]
[315561003,1709128235430,-155.15360207,0.00016193,2]
[315561004,1709128235440,-1069.97071633,0.00016194,2]
[315561005,1709128235449,-188.38117424,0.00016211,2]
[315561006,1709128235459,-389.95826005,0.00017275,2]
[315561007,1709128235469,-3092.44286078,0.00017375,2]
[315561008,1709128235478,-389.95826001,0.00017794,2]
[315561009,1709128235488,-10450.15772534,0.00018,2]
[315561010,1709128235498,-389.95826001,0.00018314,2]
[315561011,1709128235508,-389.95826001,0.00018833,2]
[315561012,1709128235518,-334.87250707,0.000189,2]
[315561013,1709128235528,-421.82229064,0.00019,2]
[315561014,1709128235541,-453.92,0.00019168,3]
[315561015,1709128235551,-1212.35049596,0.00019177,2]
[315561016,1709128235561,-1662.53191987,0.00019177,4]
[315561017,1709128235579,-269.24912565,0.00019177,4]
[315561018,1709128235592,-4784.40082467,0.00019177,4]
[315561019,1709128235605,-3912.13385916,0.00019177,4]
[315561020,1709128235617,-501.09958662,0.00019178,2]
[315561021,1709128235629,-500.0,0.00019178,2]
[315561022,1709128235639,-500.0,0.00019178,2]
[315561023,1709128235649,-500.0,0.00019178,2]
[315561024,1709128235659,-500.0,0.00019178,2]
[315561025,1709128235671,-500.0,0.00019178,2]
[315561027,1709128235681,-500.0,0.00019178,2]
[315561028,1709128235691,-500.0,0.00019178,2]
[315561029,1709128235700,-500.0,0.00019178,2]
[315561030,1709128235710,-500.0,0.00019178,2]
[315561031,1709128235720,-500.0,0.00019178,2]
[315561032,1709128235730,-500.0,0.00019178,2]
[315561033,1709128235740,-521.66214826,0.00019178,2]
[315561034,1709128235750,-500.0,0.00019178,2]
[315561035,1709128235759,-650.85,0.00019178,2]
[315561036,1709128235769,-387.15825645,0.00019178,2]
[315561037,1709128235779,-512.10602824,0.00019178,2]
[315561038,1709128235789,-500.0,0.00019178,2]
[315561039,1709128235799,-500.0,0.00019178,2]
[315561040,1709128235808,-500.0,0.00019178,2]
[315561041,1709128235819,-247.46862419,0.00019178,2]
[315561042,1709128235828,-500.0,0.00019178,2]
[315561043,1709128235838,-281.9515854,0.00019178,2]
[315561044,1709128235848,-500.0,0.00019178,2]
[315561045,1709128235858,-619.50365884,0.00019178,2]
[315561046,1709128235868,-500.92658779,0.00019178,2]
[315561047,1709128235879,-500.0,0.00019178,2]
[315561048,1709128235889,-1001.0296485,0.00019178,2]
[315561049,1709128235900,-500.0,0.00019178,2]
[315561050,1709128235910,-500.90692191,0.00019178,2]
[315561051,1709128235921,-501.20052606,0.00019178,2]
[315561052,1709128235930,-500.3888229,0.00019178,2]
[315561053,1709128235940,-291.10162555,0.00019178,2]
[315561054,1709128235950,-231.81109289,0.00019178,2]
[315561055,1709128235959,-406.64607477,0.00019178,2]
[315561056,1709128235969,-500.0,0.00019178,2]
[315561057,1709128235979,-500.0,0.00019178,2]
[315561058,1709128235989,-500.74845288,0.00019178,2]
[315561059,1709128235999,-500.0,0.00019178,2]
[315561060,1709128236009,-500.0,0.00019178,2]
[315561061,1709128236019,-500.0,0.00019178,2]
[315561062,1709128236029,-504.92316322,0.00019178,2]
[315561063,1709128236040,-500.17505704,0.00019178,2]
[315561064,1709128236049,-500.0,0.00019178,2]
[315561065,1709128236060,-500.55275279,0.00019178,2]
[315561066,1709128236069,-500.46472047,0.00019178,2]
[315561067,1709128236078,-500.31096572,0.00019178,2]
[315561068,1709128236088,-300.62222051,0.00019178,2]
[315561069,1709128236097,-501.6599369,0.00019178,2]
[315561070,1709128236107,-500.0,0.00019178,2]
[315561071,1709128236117,-500.0,0.00019178,2]
[315561072,1709128236126,-500.0,0.00019178,2]
[315561073,1709128236136,-500.0,0.00019178,2]
[315561074,1709128236145,-500.44415095,0.00019178,2]
[315561075,1709128236155,-604.88625747,0.00019178,2]
[315561076,1709128236167,-500.0,0.00019178,2]
[315561077,1709128236177,-500.0,0.00019178,2]
[315561078,1709128236187,-500.0,0.00019178,2]
[315561079,1709128236198,-500.0,0.00019178,2]
[315561080,1709128236208,-500.0,0.00019178,2]
[315561081,1709128236217,-500.0,0.00019178,2]
[315561082,1709128236227,-589.1944947,0.00019178,2]
[315561083,1709128236237,-500.0,0.00019178,2]
[315561084,1709128236247,-355.86350824,0.00019178,2]
[315561085,1709128236257,-500.0,0.00019178,2]
[315561086,1709128236267,-500.0,0.00019178,2]
[315561087,1709128236277,-500.0,0.00019178,2]
[315561088,1709128236286,-500.0,0.00019178,2]
[315561089,1709128236296,-500.0,0.00019178,2]
[315561090,1709128236306,-500.0,0.00019178,2]
[315561091,1709128236315,-500.0,0.00019178,2]
[315561092,1709128236325,-500.0,0.00019178,2]
[315561093,1709128236334,-500.0,0.00019178,2]
[315561094,1709128236344,-500.0,0.00019178,2]
[315561095,1709128236353,-500.0,0.00019178,2]
[315561096,1709128236363,-500.0,0.00019178,2]
[315561097,1709128236372,-500.0,0.00019178,2]
[315561098,1709128236383,-500.0,0.00019178,2]
[315561099,1709128236394,-500.22840503,0.00019178,2]
[315561100,1709128236404,-500.0,0.00019178,2]
[315561101,1709128236418,-500.0,0.00019178,2]
[315561102,1709128236430,-177.110656,0.00019178,2]
[315561103,1709128236441,-500.0,0.00019178,2]
[315561104,1709128236453,-500.0,0.00019178,2]
[315561105,1709128236464,-151.97029504,0.00019178,2]
[315561106,1709128236475,-500.0,0.00019178,2]
[315561107,1709128236485,-349.00690786,0.00019178,2]
[315561108,1709128236497,-500.0,0.00019178,2]
[315561109,1709128236508,-259.9324532,0.00019178,2]
[315561110,1709128236518,-500.79176669,0.00019178,2]
[315561111,1709128236528,-500.94944783,0.00019178,2]
[315561112,1709128236542,-500.0,0.00019178,2]
[315561113,1709128236552,-500.0,0.00019178,2]
[315561114,1709128236562,-500.0,0.00019178,2]
[315561115,1709128236573,-973.23,0.00019178,2]
[315561116,1709128236586,-500.0,0.00019178,2]
[315561117,1709128236596,-395.16181797,0.00019178,2]
[315561118,1709128236606,-500.53748996,0.00019178,2]
[315561119,1709128236616,-500.0,0.00019178,2]
[315561120,1709128236625,-500.0,0.00019178,2]
[315561121,1709128236635,-623.46558795,0.00019178,2]
[315561122,1709128236645,-500.0,0.00019178,2]
[315561123,1709128236655,-500.0,0.00019178,2]
[315561124,1709128236667,-500.0,0.00019178,2]
[315561125,1709128236677,-500.0,0.00019178,2]
[315561126,1709128236686,-500.0,0.00019178,2]
[315561127,1709128236696,-500.0,0.00019178,2]
[315561128,1709128236706,-500.0,0.00019178,2]
[315561129,1709128236716,-535.19307991,0.00019178,2]
[315561130,1709128236726,-500.0,0.00019178,2]
[315561131,1709128236736,-500.0,0.00019178,2]
[315561132,1709128236746,-500.0,0.00019178,2]
[315561133,1709128236756,-819.83,0.00019178,2]
[315561134,1709128236766,-500.0,0.00019178,2]
[315561135,1709128236776,-502.11209839,0.00019178,2]
[315561136,1709128236786,-500.0,0.00019178,2]
[315561137,1709128236796,-500.0,0.00019178,2]
[315561138,1709128236806,-215.19758158,0.00019178,2]
[315561139,1709128236816,-501.72333826,0.00019178,2]
[315561140,1709128236826,-500.0,0.00019178,2]
[315561141,1709128236836,-500.0,0.00019178,2]
[315561142,1709128236846,-500.0,0.00019178,2]
[315561143,1709128236856,-734.43,0.00019178,2]
[315561144,1709128236866,-500.0,0.00019178,2]
[315561145,1709128236876,-500.0,0.00019178,2]
[315561146,1709128236886,-500.0,0.00019178,2]
[315561147,1709128236896,-186.93515222,0.00019178,2]
[315561148,1709128236905,-500.0,0.00019178,2]
[315561149,1709128236918,-500.0,0.00019178,2]
[315561150,1709128236928,-547.86795741,0.00019178,2]
[315561151,1709128236937,-581.6924563,0.00019178,2]
[315561152,1709128236947,-500.0,0.00019178,2]
[315561153,1709128236956,-500.0,0.00019178,2]
[315561154,1709128236966,-502.48047561,0.00019178,2]
[315561155,1709128236975,-500.0,0.00019178,2]
[315561156,1709128236985,-500.0,0.00019178,2]
[315561157,1709128236994,-589.44894774,0.00019178,2]
[315561158,1709128237004,-500.0,0.00019178,2]
[315561159,1709128237013,-500.0,0.00019178,2]
[315561160,1709128237022,-500.0,0.00019178,2]
[315561161,1709128237031,-500.0,0.00019178,2]
[315561162,1709128237040,-1240.37,0.00019178,2]
[315561163,1709128237049,-500.0,0.00019178,2]
[315561164,1709128237059,-500.0,0.00019178,2]
[315561165,1709128237068,-500.0,0.00019178,2]
[315561166,1709128237077,-500.91536367,0.00019178,2]
[315561167,1709128237087,-500.0,0.00019178,2]
[315561168,1709128237096,-500.0,0.00019178,2]
[315561169,1709128237105,-500.0,0.00019178,2]
[315561170,1709128237114,-500.0,0.00019178,2]
[315561171,1709128237123,-750.3,0.00019178,2]
[315561172,1709128237132,-537.73036638,0.00019178,2]
[315561173,1709128237141,-1558.29,0.00019178,2]
[315561174,1709128237149,-500.0,0.00019178,2]
[315561175,1709128237158,-501.03416332,0.00019178,2]
[315561176,1709128237170,-500.0,0.00019178,2]
[315561177,1709128237179,-500.0,0.00019178,2]
[315561178,1709128237188,-200.0,0.00019178,2]
[315561179,1709128237196,-1187.3,0.00019178,2]
[315561180,1709128237206,-500.0,0.00019178,2]
[315561181,1709128237215,-500.0,0.00019178,2]
[315561182,1709128237224,-502.50326818,0.00019178,2]
[315561183,1709128237233,-500.0,0.00019178,2]
[315561184,1709128237243,-500.0,0.00019178,2]
[315561185,1709128237251,-616.31314277,0.00019178,2]
[315561186,1709128237260,-756.95,0.00019178,2]
[315561187,1709128237269,-500.0,0.00019178,2]
[315561188,1709128237278,-500.0,0.00019178,2]
[315561189,1709128237287,-500.0,0.00019178,2]
[315561190,1709128237296,-500.0,0.00019178,2]
[315561191,1709128237305,-500.0,0.00019178,2]
[315561192,1709128237314,-1239.38,0.00019178,2]
[315561193,1709128237324,-500.0,0.00019178,2]
[315561194,1709128237333,-500.0,0.00019178,2]
[315561195,1709128237342,-500.0,0.00019178,2]
[315561196,1709128237351,-500.0,0.00019178,2]
[315561197,1709128237360,-500.0,0.00019178,2]
[315561198,1709128237370,-500.0,0.00019178,2]
[315561199,1709128237379,-500.0,0.00019178,2]
[315561200,1709128237387,-500.0,0.00019178,2]
[315561201,1709128237396,-500.0,0.00019178,2]
[315561202,1709128237406,-500.0,0.00019178,2]
[315561203,1709128237416,-500.72039266,0.00019178,2]
[315561204,1709128237426,-500.0,0.00019178,2]
[315561205,1709128237435,-500.0,0.00019178,2]
[315561206,1709128237444,-9215.23,0.00019178,2]
[315561207,1709128237454,-391.00786039,0.00019178,2]
[315561208,1709128237463,-500.0,0.00019178,2]
[315561209,1709128237471,-500.0,0.00019178,2]
[315561210,1709128237481,-500.0,0.00019178,2]
[315561211,1709128237490,-500.0,0.00019178,2]
[315561212,1709128237499,-638.74,0.00019178,2]
[315561213,1709128237508,-500.0,0.00019178,2]
[315561214,1709128237517,-573.25693407,0.00019178,2]
[315561215,1709128237526,-738.73,0.00019178,2]
[315561216,1709128237537,-3630.63,0.00019178,2]
[315561217,1709128237546,-500.0,0.00019178,2]
[315561218,1709128237555,-500.0,0.00019178,2]
[315561219,1709128237661,-500.0,0.00019178,2]
[315561220,1709128237672,-500.54740752,0.00019178,2]